[Event "Titled Tuesday Blitz January 03 Early 2023"]
[White "Subelj, Jan"]
[Black "Gurevich, Dmitry"]
[WhiteFideId "14618583"]
[BlackFideId "2000407"]
[WhiteElo "2513"]
[BlackElo "2393"]
[Result "1/2-1/2"]
[Round "03"]
[TimeControl "180+2"]
[Date "2023.01.03"]
[WhiteClock "0:00:08"]
[BlackClock "0:00:08"]

1. c3 {[%clk 0:02:59]}  d5 {[%clk 0:02:58]} 2. d4 {[%clk 0:02:59]}  Nf6 {[%clk 0:02:58]} 3. Nf3 {[%clk 0:02:58]}  g6 {[%clk 0:02:58]} 4. Bf4 {[%clk 0:02:57]}  Bg7 {[%clk 0:02:58]} 5. Nbd2 {[%clk 0:02:56]}  O-O {[%clk 0:02:57]} 6. h3 {[%clk 0:02:56]}  b6 {[%clk 0:02:57]} 7. e3 {[%clk 0:02:56]}  Bb7 {[%clk 0:02:56]} 8. Be2 {[%clk 0:02:54]}  c5 {[%clk 0:02:51]} 9. O-O {[%clk 0:02:54]}  Nc6 {[%clk 0:02:51]} 10. Ne5 {[%clk 0:02:48]}  Nxe5 {[%clk 0:02:49]} 11. Bxe5 {[%clk 0:02:49]}  Nd7 {[%clk 0:02:43]} 12. Bxg7 {[%clk 0:02:48]}  Kxg7 {[%clk 0:02:43]} 13. a4 {[%clk 0:02:48]}  a6 {[%clk 0:02:38]} 14. b4 {[%clk 0:02:43]}  e5 {[%clk 0:02:27]} 15. Qb3 {[%clk 0:02:38]}  c4 {[%clk 0:02:23]} 16. Qb2 {[%clk 0:02:37]}  exd4 {[%clk 0:02:19]} 17. exd4 {[%clk 0:02:38]}  Re8 {[%clk 0:02:18]} 18. Bf3 {[%clk 0:02:38]}  Nf6 {[%clk 0:02:16]} 19. Nxc4 {[%clk 0:02:35]}  Rc8 {[%clk 0:02:05]} 20. Ne5 {[%clk 0:02:34]}  Nd7 {[%clk 0:02:04]} 21. Nxd7 {[%clk 0:02:12]}  Qxd7 {[%clk 0:02:03]} 22. Bg4 {[%clk 0:02:13]}  f5 {[%clk 0:02:03]} 23. Bf3 {[%clk 0:02:13]}  Bc6 {[%clk 0:01:53]} 24. a5 {[%clk 0:02:10]}  Bb5 {[%clk 0:01:49]} 25. Rfe1 {[%clk 0:02:10]}  bxa5 {[%clk 0:01:48]} 26. bxa5 {[%clk 0:02:09]}  Qc6 {[%clk 0:01:39]} 27. Qb4 {[%clk 0:02:05]}  Qxc3 {[%clk 0:01:29]} 28. Re7+ {[%clk 0:02:01]}  Kh6 {[%clk 0:01:19]} 29. Qxc3 {[%clk 0:01:53]}  Rxc3 {[%clk 0:01:18]} 30. Rxe8 {[%clk 0:01:54]}  Bxe8 {[%clk 0:01:17]} 31. Bxd5 {[%clk 0:01:55]}  Bb5 {[%clk 0:01:13]} 32. Bf3 {[%clk 0:01:52]}  Rd3 {[%clk 0:01:07]} 33. d5 {[%clk 0:01:09]}  Kg5 {[%clk 0:00:58]} 34. Re1 {[%clk 0:01:03]}  Bc4 {[%clk 0:00:53]} 35. Be2 {[%clk 0:01:03]}  Rd4 {[%clk 0:00:52]} 36. Bxc4 {[%clk 0:01:01]}  Rxc4 {[%clk 0:00:52]} 37. Rd1 {[%clk 0:01:00]}  Rc7 {[%clk 0:00:51]} 38. g3 {[%clk 0:00:55]}  Kf6 {[%clk 0:00:46]} 39. f4 {[%clk 0:00:55]}  Rd7 {[%clk 0:00:42]} 40. Kf2 {[%clk 0:00:55]}  Ke7 {[%clk 0:00:42]} 41. Re1+ {[%clk 0:00:50]}  Kd6 {[%clk 0:00:39]} 42. Re6+ {[%clk 0:00:49]}  Kxd5 {[%clk 0:00:39]} 43. Rxa6 {[%clk 0:00:50]}  Rb7 {[%clk 0:00:34]} 44. Rb6 {[%clk 0:00:46]}  Rc7 {[%clk 0:00:34]} 45. a6 {[%clk 0:00:45]}  Rc2+ {[%clk 0:00:33]} 46. Ke3 {[%clk 0:00:45]}  Rc3+ {[%clk 0:00:33]} 47. Kf2 {[%clk 0:00:44]}  Ra3 {[%clk 0:00:32]} 48. h4 {[%clk 0:00:40]}  Ke4 {[%clk 0:00:31]} 49. Re6+ {[%clk 0:00:38]}  Kd5 {[%clk 0:00:30]} 50. Re7 {[%clk 0:00:33]}  Rxa6 {[%clk 0:00:26]} 51. Rxh7 {[%clk 0:00:34]}  Ra2+ {[%clk 0:00:23]} 52. Kf3 {[%clk 0:00:33]}  Ra3+ {[%clk 0:00:23]} 53. Kg2 {[%clk 0:00:33]}  Ra2+ {[%clk 0:00:24]} 54. Kh3 {[%clk 0:00:33]}  Ke4 {[%clk 0:00:24]} 55. Rb7 {[%clk 0:00:25]}  Kf3 {[%clk 0:00:22]} 56. Rb3+ {[%clk 0:00:24]}  Kf2 {[%clk 0:00:22]} 57. h5 {[%clk 0:00:25]}  gxh5 {[%clk 0:00:20]} 58. Kh4 {[%clk 0:00:25]}  Ra7 {[%clk 0:00:14]} 59. Kxh5 {[%clk 0:00:23]}  Rg7 {[%clk 0:00:14]} 60. Kh6 {[%clk 0:00:20]}  Rg4 {[%clk 0:00:13]} 61. Kh5 {[%clk 0:00:19]}  Rg8 {[%clk 0:00:13]} 62. Rb5 {[%clk 0:00:15]}  Kxg3 {[%clk 0:00:11]} 63. Rxf5 {[%clk 0:00:16]}  Rh8+ {[%clk 0:00:10]} 64. Kg6 {[%clk 0:00:15]}  Kg4 {[%clk 0:00:09]} 65. Rf7 {[%clk 0:00:13]}  Rg8+ {[%clk 0:00:09]} 66. Kh7 {[%clk 0:00:13]}  Ra8 {[%clk 0:00:08]} 67. f5 {[%clk 0:00:13]}  Kg5 {[%clk 0:00:08]} 68. Kg7 {[%clk 0:00:12]}  Ra5 {[%clk 0:00:07]} 69. f6 {[%clk 0:00:12]}  Ra6 {[%clk 0:00:07]} 70. Rf8 {[%clk 0:00:12]}  Rb6 {[%clk 0:00:07]} 71. Rf7 {[%clk 0:00:06]}  Ra6 {[%clk 0:00:07]} 72. Rf8 {[%clk 0:00:06]}  Rb6 {[%clk 0:00:07]} 73. f7 {[%clk 0:00:05]}  Rg6+ {[%clk 0:00:07]} 74. Kh7 {[%clk 0:00:06]}  Rh6+ {[%clk 0:00:07]} 75. Kg7 {[%clk 0:00:07]}  Rg6+ {[%clk 0:00:07]} 76. Kh7 {[%clk 0:00:07]}  Rh6+ {[%clk 0:00:08]} 77. Kg7 {[%clk 0:00:08]}  Rg6+ {[%clk 0:00:08]} 1/2-1/2


[Site "https://www.chess.com"]

[Event "Titled Tuesday Blitz January 03 Early 2023"]
[White "Dourerassou, Jonathan"]
[Black "Mohammed, Zozek Salah Mohammed"]
[WhiteFideId "628050"]
[BlackFideId "4803361"]
[WhiteElo "2414"]
[BlackElo "2210"]
[Result "1-0"]
[Round "03"]
[TimeControl "180+2"]
[Date "2023.01.03"]
[WhiteClock "0:01:54"]
[BlackClock "0:00:17"]

1. d4 {[%clk 0:03:00]}  Nf6 {[%clk 0:02:58]} 2. Bg5 {[%clk 0:03:00]}  c5 {[%clk 0:02:56]} 3. Bxf6 {[%clk 0:02:59]}  gxf6 {[%clk 0:02:53]} 4. d5 {[%clk 0:02:59]}  d6 {[%clk 0:02:44]} 5. c4 {[%clk 0:02:59]}  Qb6 {[%clk 0:02:42]} 6. Qc1 {[%clk 0:02:58]}  Bh6 {[%clk 0:02:36]} 7. e3 {[%clk 0:02:57]}  Bf5 {[%clk 0:02:35]} 8. Nc3 {[%clk 0:02:56]}  Nd7 {[%clk 0:02:34]} 9. Nge2 {[%clk 0:02:51]}  Bd3 {[%clk 0:02:31]} 10. Ng3 {[%clk 0:02:46]}  Ne5 {[%clk 0:02:30]} 11. b3 {[%clk 0:02:42]}  Bxf1 {[%clk 0:01:55]} 12. Kxf1 {[%clk 0:02:43]}  e6 {[%clk 0:01:49]} 13. Nh5 {[%clk 0:02:26]}  Ke7 {[%clk 0:01:45]} 14. Qd2 {[%clk 0:02:18]}  Rhg8 {[%clk 0:01:37]} 15. Ng3 {[%clk 0:02:17]}  Rg6 {[%clk 0:00:56]} 16. f4 {[%clk 0:01:59]}  Ng4 {[%clk 0:00:50]} 17. dxe6 {[%clk 0:01:57]}  fxe6 {[%clk 0:00:48]} 18. h3 {[%clk 0:01:57]}  Ne5 {[%clk 0:00:17]} 19. Nf5+ {[%clk 0:01:54]} 1-0


[Site "https://www.chess.com"]

[Event "Titled Tuesday Blitz January 03 Early 2023"]
[White "Leiva, Gianmarco"]
[Black "Adury, Anant"]
[WhiteFideId "3804399"]
[BlackFideId "30964687"]
[WhiteElo "2392"]
[BlackElo "2123"]
[Result "1-0"]
[Round "03"]
[TimeControl "180+2"]
[Date "2023.01.03"]
[WhiteClock "0:01:25"]
[BlackClock "0:01:40"]

1. Nf3 {[%clk 0:02:58]}  Nf6 {[%clk 0:02:52]} 2. g3 {[%clk 0:02:57]}  c5 {[%clk 0:02:49]} 3. Bg2 {[%clk 0:02:54]}  Nc6 {[%clk 0:02:49]} 4. O-O {[%clk 0:02:54]}  d6 {[%clk 0:02:47]} 5. d4 {[%clk 0:02:48]}  cxd4 {[%clk 0:02:47]} 6. Nxd4 {[%clk 0:02:49]}  Bd7 {[%clk 0:02:43]} 7. c4 {[%clk 0:02:48]}  Rc8 {[%clk 0:02:43]} 8. b3 {[%clk 0:02:47]}  Nxd4 {[%clk 0:02:42]} 9. Qxd4 {[%clk 0:02:47]}  Bc6 {[%clk 0:02:43]} 10. Qxa7 {[%clk 0:02:42]}  Bxg2 {[%clk 0:02:42]} 11. Kxg2 {[%clk 0:02:42]}  Qd7 {[%clk 0:02:36]} 12. Nc3 {[%clk 0:02:33]}  h5 {[%clk 0:02:32]} 13. h4 {[%clk 0:02:22]}  d5 {[%clk 0:02:25]} 14. Rd1 {[%clk 0:02:22]}  d4 {[%clk 0:02:19]} 15. Qxd4 {[%clk 0:02:17]}  Qc6+ {[%clk 0:02:19]} 16. f3 {[%clk 0:02:08]}  e6 {[%clk 0:02:18]} 17. Be3 {[%clk 0:01:51]}  Bb4 {[%clk 0:01:59]} 18. Ne4 {[%clk 0:01:31]}  Be7 {[%clk 0:01:42]} 19. Nd6+ {[%clk 0:01:25]}  Bxd6 {[%clk 0:01:40]} 20. Qxd6 {[%clk 0:01:25]} 1-0


[Site "https://www.chess.com"]

[Event "Titled Tuesday Blitz January 03 Early 2023"]
[White "Ilinca Ilinca, Felix Antonio"]
[Black "Fedoseev, Vladimir"]
[WhiteFideId "54764998"]
[BlackFideId "24130737"]
[WhiteElo "2266"]
[BlackElo "2680"]
[Result "0-1"]
[Round "03"]
[TimeControl "180+2"]
[Date "2023.01.03"]
[WhiteClock "0:00:20"]
[BlackClock "0:01:06"]

1. c4 {[%clk 0:03:00]}  e5 {[%clk 0:02:58]} 2. Nc3 {[%clk 0:03:00]}  Nf6 {[%clk 0:02:57]} 3. Nf3 {[%clk 0:03:00]}  Nc6 {[%clk 0:02:55]} 4. g3 {[%clk 0:02:59]}  Nd4 {[%clk 0:02:48]} 5. Bg2 {[%clk 0:02:58]}  Nxf3+ {[%clk 0:02:48]} 6. Bxf3 {[%clk 0:02:59]}  Bb4 {[%clk 0:02:48]} 7. d3 {[%clk 0:02:54]}  h6 {[%clk 0:02:46]} 8. Bd2 {[%clk 0:02:52]}  a5 {[%clk 0:02:43]} 9. a3 {[%clk 0:02:50]}  Bc5 {[%clk 0:02:42]} 10. O-O {[%clk 0:02:50]}  d6 {[%clk 0:02:41]} 11. b4 {[%clk 0:02:45]}  Bd4 {[%clk 0:02:35]} 12. e3 {[%clk 0:02:44]}  axb4 {[%clk 0:02:28]} 13. axb4 {[%clk 0:02:36]}  Rxa1 {[%clk 0:02:28]} 14. Qxa1 {[%clk 0:02:36]}  Bxc3 {[%clk 0:02:29]} 15. Bxc3 {[%clk 0:02:36]}  O-O {[%clk 0:02:30]} 16. Bg2 {[%clk 0:02:33]}  b6 {[%clk 0:02:28]} 17. Qa7 {[%clk 0:02:24]}  Bf5 {[%clk 0:02:25]} 18. Rd1 {[%clk 0:02:22]}  Qd7 {[%clk 0:02:22]} 19. d4 {[%clk 0:02:08]}  Be4 {[%clk 0:02:13]} 20. dxe5 {[%clk 0:01:52]}  Bxg2 {[%clk 0:02:11]} 21. Kxg2 {[%clk 0:01:33]}  Qc6+ {[%clk 0:02:09]} 22. Kg1 {[%clk 0:01:30]}  Ne4 {[%clk 0:02:05]} 23. Bd4 {[%clk 0:01:26]}  Ng5 {[%clk 0:02:01]} 24. Qa2 {[%clk 0:01:16]}  dxe5 {[%clk 0:01:56]} 25. Bc3 {[%clk 0:01:08]}  Nf3+ {[%clk 0:01:55]} 26. Kf1 {[%clk 0:01:01]}  Nxh2+ {[%clk 0:01:55]} 27. Ke1 {[%clk 0:00:59]}  Qh1+ {[%clk 0:01:53]} 28. Ke2 {[%clk 0:01:00]}  Qf3+ {[%clk 0:01:54]} 29. Ke1 {[%clk 0:01:00]}  Qg4 {[%clk 0:01:45]} 30. c5 {[%clk 0:00:39]}  Nf3+ {[%clk 0:01:38]} 31. Kf1 {[%clk 0:00:39]}  Nd4 {[%clk 0:01:35]} 32. Ke1 {[%clk 0:00:26]}  Nf3+ {[%clk 0:01:19]} 33. Kf1 {[%clk 0:00:27]}  b5 {[%clk 0:01:17]} 34. c6 {[%clk 0:00:22]}  Nd4 {[%clk 0:01:12]} 35. Ke1 {[%clk 0:00:19]}  Nxc6 {[%clk 0:01:10]} 36. Qd5 {[%clk 0:00:19]}  Nxb4 {[%clk 0:01:10]} 37. Qxe5 {[%clk 0:00:18]}  Nc2+ {[%clk 0:01:09]} 38. Kf1 {[%clk 0:00:18]}  Qxd1+ {[%clk 0:01:08]} 39. Kg2 {[%clk 0:00:19]}  Qg4 {[%clk 0:01:06]} 40. f3 {[%clk 0:00:18]}  Qg6 {[%clk 0:01:05]} 41. e4 {[%clk 0:00:19]}  b4 {[%clk 0:01:06]} 42. Bb2 {[%clk 0:00:19]}  Ne3+ {[%clk 0:01:06]} 43. Kf2 {[%clk 0:00:19]}  Nd1+ {[%clk 0:01:05]} 44. Ke1 {[%clk 0:00:19]}  Nxb2 {[%clk 0:01:06]} 45. Qxb2 {[%clk 0:00:20]}  Qxg3+ {[%clk 0:01:06]} 0-1


[Site "https://www.chess.com"]

[Event "Titled Tuesday Blitz January 03 Early 2023"]
[White "Parpiev, Isaak"]
[Black "Pranav, V"]
[WhiteFideId "34281576"]
[BlackFideId "25060783"]
[WhiteElo "2167"]
[BlackElo "2597"]
[Result "0-1"]
[Round "03"]
[TimeControl "180+2"]
[Date "2023.01.03"]
[WhiteClock "0:00:12"]
[BlackClock "0:02:40"]

1. d4 {[%clk 0:02:54]}  Nf6 {[%clk 0:02:59]} 2. c4 {[%clk 0:02:54]}  Nc6 {[%clk 0:02:59]} 3. Nc3 {[%clk 0:02:53]}  e6 {[%clk 0:03:00]} 4. e4 {[%clk 0:02:52]}  Bb4 {[%clk 0:02:57]} 5. e5 {[%clk 0:02:50]}  Ne4 {[%clk 0:02:57]} 6. Qd3 {[%clk 0:02:41]}  d5 {[%clk 0:02:55]} 7. cxd5 {[%clk 0:02:32]}  exd5 {[%clk 0:02:52]} 8. a3 {[%clk 0:02:19]}  Ba5 {[%clk 0:02:52]} 9. b4 {[%clk 0:01:55]}  Bb6 {[%clk 0:02:51]} 10. Nce2 {[%clk 0:00:56]}  O-O {[%clk 0:02:46]} 11. f3 {[%clk 0:00:53]}  Nxe5 {[%clk 0:02:44]} 12. Qc2 {[%clk 0:00:33]}  Bf5 {[%clk 0:02:39]} 13. fxe4 {[%clk 0:00:33]}  Bxe4 {[%clk 0:02:40]} 14. Qb3 {[%clk 0:00:11]}  Nd3+ {[%clk 0:02:39]} 15. Kd2 {[%clk 0:00:12]}  Nf2 {[%clk 0:02:40]} 0-1


[Site "https://www.chess.com"]

[Event "Titled Tuesday Blitz January 03 Early 2023"]
[White "Kvaloy, Aksel Bu"]
[Black "Lazavik, Denis"]
[WhiteFideId "1528815"]
[BlackFideId "13515110"]
[WhiteElo "2321"]
[BlackElo "2544"]
[Result "0-1"]
[Round "03"]
[TimeControl "180+2"]
[Date "2023.01.03"]
[WhiteClock "0:01:00"]
[BlackClock "0:00:38"]

1. d4 {[%clk 0:03:00]}  f5 {[%clk 0:02:59]} 2. e4 {[%clk 0:02:59]}  fxe4 {[%clk 0:02:59]} 3. Nc3 {[%clk 0:02:59]}  Nf6 {[%clk 0:02:59]} 4. Bg5 {[%clk 0:02:58]}  g6 {[%clk 0:02:55]} 5. f3 {[%clk 0:02:57]}  d5 {[%clk 0:02:54]} 6. Bxf6 {[%clk 0:02:56]}  exf6 {[%clk 0:02:52]} 7. fxe4 {[%clk 0:02:57]}  dxe4 {[%clk 0:02:51]} 8. Nxe4 {[%clk 0:02:56]}  Qe7 {[%clk 0:02:34]} 9. Qe2 {[%clk 0:02:56]}  Bg7 {[%clk 0:02:24]} 10. O-O-O {[%clk 0:02:53]}  f5 {[%clk 0:02:23]} 11. Nc3 {[%clk 0:02:47]}  Qxe2 {[%clk 0:02:21]} 12. Bxe2 {[%clk 0:02:45]}  c6 {[%clk 0:02:06]} 13. Bc4 {[%clk 0:02:44]}  Kf8 {[%clk 0:01:56]} 14. Nf3 {[%clk 0:02:40]}  Bf6 {[%clk 0:01:53]} 15. Rhe1 {[%clk 0:02:33]}  Kg7 {[%clk 0:01:51]} 16. d5 {[%clk 0:02:23]}  Rd8 {[%clk 0:01:48]} 17. Nd4 {[%clk 0:02:12]}  b5 {[%clk 0:01:14]} 18. Bb3 {[%clk 0:01:43]}  Bxd4 {[%clk 0:00:52]} 19. Rxd4 {[%clk 0:01:36]}  c5 {[%clk 0:00:52]} 20. Nxb5 {[%clk 0:01:19]}  cxd4 {[%clk 0:00:48]} 21. Nc7 {[%clk 0:01:18]}  Na6 {[%clk 0:00:42]} 22. Ne6+ {[%clk 0:01:15]}  Bxe6 {[%clk 0:00:42]} 23. dxe6 {[%clk 0:01:04]}  Nc5 {[%clk 0:00:41]} 24. Bc4 {[%clk 0:01:02]}  Ne4 {[%clk 0:00:39]} 25. Bb5 {[%clk 0:01:00]}  Kf6 {[%clk 0:00:38]} 0-1


[Site "https://www.chess.com"]

[Event "Titled Tuesday Blitz January 03 Early 2023"]
[White "Ozdemir, Serhan Berat"]
[Black "Oparin, Grigoriy"]
[WhiteFideId "6374611"]
[BlackFideId "24125890"]
[WhiteElo "2223"]
[BlackElo "2667"]
[Result "0-1"]
[Round "03"]
[TimeControl "180+2"]
[Date "2023.01.03"]
[WhiteClock "0:00:02"]
[BlackClock "0:00:07"]

1. e4 {[%clk 0:03:00]}  d5 {[%clk 0:03:00]} 2. exd5 {[%clk 0:02:59]}  Qxd5 {[%clk 0:03:01]} 3. Nc3 {[%clk 0:02:59]}  Qd6 {[%clk 0:03:01]} 4. d4 {[%clk 0:02:59]}  c6 {[%clk 0:03:00]} 5. g3 {[%clk 0:02:59]}  Bf5 {[%clk 0:02:59]} 6. Bg2 {[%clk 0:02:58]}  e6 {[%clk 0:02:59]} 7. Nf3 {[%clk 0:02:54]}  Qc7 {[%clk 0:02:58]} 8. O-O {[%clk 0:02:48]}  Nf6 {[%clk 0:02:59]} 9. Re1 {[%clk 0:02:46]}  Bd6 {[%clk 0:02:55]} 10. Ne5 {[%clk 0:02:41]}  Nbd7 {[%clk 0:02:52]} 11. Nc4 {[%clk 0:02:39]}  O-O {[%clk 0:02:39]} 12. Nxd6 {[%clk 0:02:36]}  Qxd6 {[%clk 0:02:40]} 13. Bf4 {[%clk 0:02:36]}  Qb4 {[%clk 0:02:40]} 14. Qd2 {[%clk 0:02:15]}  Rfe8 {[%clk 0:02:33]} 15. a3 {[%clk 0:02:13]}  Qa5 {[%clk 0:02:32]} 16. b4 {[%clk 0:02:05]}  Qd8 {[%clk 0:02:32]} 17. b5 {[%clk 0:01:59]}  Nd5 {[%clk 0:02:31]} 18. bxc6 {[%clk 0:01:57]}  bxc6 {[%clk 0:02:32]} 19. Ne4 {[%clk 0:01:49]}  N7b6 {[%clk 0:02:16]} 20. Nd6 {[%clk 0:01:21]}  Re7 {[%clk 0:02:14]} 21. c4 {[%clk 0:01:03]}  Nxf4 {[%clk 0:02:13]} 22. Qxf4 {[%clk 0:01:03]}  Bg6 {[%clk 0:01:57]} 23. Bxc6 {[%clk 0:00:50]}  Rb8 {[%clk 0:01:58]} 24. c5 {[%clk 0:00:47]}  Nd7 {[%clk 0:01:49]} 25. Nb7 {[%clk 0:00:40]}  Qc8 {[%clk 0:01:44]} 26. Qd6 {[%clk 0:00:40]}  Nf6 {[%clk 0:01:18]} 27. Qxe7 {[%clk 0:00:27]}  Qxc6 {[%clk 0:01:18]} 28. Rab1 {[%clk 0:00:06]}  Bxb1 {[%clk 0:01:17]} 29. Rxb1 {[%clk 0:00:05]}  Ne4 {[%clk 0:01:02]} 30. Rb4 {[%clk 0:00:04]}  Rf8 {[%clk 0:00:41]} 31. Nd6 {[%clk 0:00:03]}  Nd2 {[%clk 0:00:33]} 32. Nxf7 {[%clk 0:00:01]}  Nf3+ {[%clk 0:00:30]} 33. Kf1 {[%clk 0:00:01]}  Nxh2+ {[%clk 0:00:30]} 34. Kg1 {[%clk 0:00:02]}  Nf3+ {[%clk 0:00:30]} 35. Kf1 {[%clk 0:00:02]}  Qe4 {[%clk 0:00:15]} 36. Rb2 {[%clk 0:00:01]}  Nh2+ {[%clk 0:00:13]} 37. Kg1 {[%clk 0:00:01]}  Nf3+ {[%clk 0:00:13]} 38. Kf1 {[%clk 0:00:02]}  Qxd4 {[%clk 0:00:10]} 39. Nh6+ {[%clk 0:00:02]}  gxh6 {[%clk 0:00:09]} 40. Rb7 {[%clk 0:00:02]}  Nh2+ {[%clk 0:00:08]} 41. Kg2 {[%clk 0:00:03]}  Qxf2+ {[%clk 0:00:08]} 42. Kh3 {[%clk 0:00:04]}  Qf1+ {[%clk 0:00:08]} 43. Kh4 {[%clk 0:00:02]}  Nf3+ {[%clk 0:00:06]} 44. Kg4 {[%clk 0:00:03]}  Ne5+ {[%clk 0:00:06]} 45. Kh4 {[%clk 0:00:02]}  Qh1# {[%clk 0:00:07]} 0-1


[Site "https://www.chess.com"]

[Event "Titled Tuesday Blitz January 03 Early 2023"]
[White "Cella, Glaucio Dalla Cortt"]
[Black "Bortnyk, Mykola"]
[WhiteFideId "2119455"]
[BlackFideId "14120836"]
[WhiteElo "1894"]
[BlackElo "2425"]
[Result "0-1"]
[Round "03"]
[TimeControl "180+2"]
[Date "2023.01.03"]
[WhiteClock "0:00:16"]
[BlackClock "0:01:03"]

1. e4 {[%clk 0:02:34]}  Nf6 {[%clk 0:02:58]} 2. Nc3 {[%clk 0:02:33]}  d5 {[%clk 0:02:58]} 3. exd5 {[%clk 0:02:33]}  Nxd5 {[%clk 0:02:58]} 4. Bc4 {[%clk 0:02:34]}  Nb6 {[%clk 0:02:59]} 5. Bb3 {[%clk 0:02:34]}  c5 {[%clk 0:02:59]} 6. d3 {[%clk 0:02:33]}  Nc6 {[%clk 0:03:00]} 7. Nge2 {[%clk 0:02:30]}  Bg4 {[%clk 0:02:56]} 8. f3 {[%clk 0:02:30]}  Bh5 {[%clk 0:02:56]} 9. Be3 {[%clk 0:02:30]}  e6 {[%clk 0:02:54]} 10. O-O {[%clk 0:02:30]}  Be7 {[%clk 0:02:45]} 11. Ne4 {[%clk 0:02:27]}  Nd7 {[%clk 0:02:38]} 12. Nf4 {[%clk 0:02:25]}  Bg6 {[%clk 0:02:38]} 13. Nxg6 {[%clk 0:02:24]}  hxg6 {[%clk 0:02:37]} 14. h3 {[%clk 0:02:24]}  Qc7 {[%clk 0:02:32]} 15. c3 {[%clk 0:02:21]}  O-O-O {[%clk 0:02:28]} 16. Ba4 {[%clk 0:02:18]}  Nde5 {[%clk 0:02:26]} 17. Qe2 {[%clk 0:01:37]}  Nxd3 {[%clk 0:02:23]} 18. Rad1 {[%clk 0:01:32]}  c4 {[%clk 0:02:10]} 19. b3 {[%clk 0:01:32]}  f5 {[%clk 0:02:05]} 20. Bxc6 {[%clk 0:01:26]}  Qxc6 {[%clk 0:02:03]} 21. Nd2 {[%clk 0:01:27]}  cxb3 {[%clk 0:01:42]} 22. axb3 {[%clk 0:01:18]}  Qxc3 {[%clk 0:01:35]} 23. Bxa7 {[%clk 0:01:11]}  Bc5+ {[%clk 0:01:23]} 24. Bxc5 {[%clk 0:01:05]}  Qxc5+ {[%clk 0:01:24]} 25. Kh2 {[%clk 0:01:04]}  Nf4 {[%clk 0:01:11]} 26. Rc1 {[%clk 0:00:27]}  Nxe2 {[%clk 0:01:06]} 27. Rxc5+ {[%clk 0:00:27]}  Kb8 {[%clk 0:01:07]} 28. Nc4 {[%clk 0:00:22]}  Nd4 {[%clk 0:01:06]} 29. b4 {[%clk 0:00:18]}  g5 {[%clk 0:01:06]} 30. Ra1 {[%clk 0:00:17]}  Nb3 {[%clk 0:01:04]} 31. Ra3 {[%clk 0:00:17]}  Nxc5 {[%clk 0:01:04]} 32. bxc5 {[%clk 0:00:17]}  Kc7 {[%clk 0:01:03]} 33. Nb6 {[%clk 0:00:15]}  Kc6 {[%clk 0:01:02]} 34. Rc3 {[%clk 0:00:15]}  g4 {[%clk 0:01:02]} 35. fxg4 {[%clk 0:00:15]}  fxg4 {[%clk 0:01:03]} 36. Kg3 {[%clk 0:00:15]}  gxh3 {[%clk 0:01:04]} 37. gxh3 {[%clk 0:00:16]}  Rh5 {[%clk 0:01:03]} 38. Kg4 {[%clk 0:00:16]}  Rxc5 {[%clk 0:01:03]} 39. Nc4 {[%clk 0:00:16]}  Rd4+ {[%clk 0:01:03]} 0-1


[Site "https://www.chess.com"]

[Event "Titled Tuesday Blitz January 03 Early 2023"]
[White "Kovalenko, Igor"]
[Black "Padmini, Rout"]
[WhiteFideId "14117908"]
[BlackFideId "5029295"]
[WhiteElo "2674"]
[BlackElo "2375"]
[Result "0-1"]
[Round "03"]
[TimeControl "180+2"]
[Date "2023.01.03"]
[WhiteClock "0:00:49"]
[BlackClock "0:00:08"]

1. d4 {[%clk 0:03:00]}  Nf6 {[%clk 0:02:58]} 2. Nf3 {[%clk 0:03:00]}  e6 {[%clk 0:02:57]} 3. e3 {[%clk 0:02:59]}  d5 {[%clk 0:02:57]} 4. Bd3 {[%clk 0:02:59]}  Bd6 {[%clk 0:02:57]} 5. O-O {[%clk 0:02:59]}  O-O {[%clk 0:02:56]} 6. b3 {[%clk 0:02:59]}  b6 {[%clk 0:02:56]} 7. Bb2 {[%clk 0:02:58]}  Bb7 {[%clk 0:02:57]} 8. Nbd2 {[%clk 0:02:58]}  Nbd7 {[%clk 0:02:57]} 9. a4 {[%clk 0:02:55]}  Ne4 {[%clk 0:02:54]} 10. a5 {[%clk 0:02:52]}  a6 {[%clk 0:02:41]} 11. axb6 {[%clk 0:02:51]}  cxb6 {[%clk 0:02:41]} 12. Qe2 {[%clk 0:02:47]}  b5 {[%clk 0:02:39]} 13. c4 {[%clk 0:02:47]}  bxc4 {[%clk 0:02:18]} 14. bxc4 {[%clk 0:02:48]}  a5 {[%clk 0:02:18]} 15. c5 {[%clk 0:02:42]}  Bc7 {[%clk 0:02:16]} 16. Bb5 {[%clk 0:02:40]}  Nb8 {[%clk 0:02:14]} 17. Ra4 {[%clk 0:02:28]}  f5 {[%clk 0:02:12]} 18. Rfa1 {[%clk 0:02:28]}  Nc6 {[%clk 0:01:59]} 19. g3 {[%clk 0:02:24]}  Qf6 {[%clk 0:01:42]} 20. Nb3 {[%clk 0:02:07]}  g5 {[%clk 0:01:16]} 21. Nfd2 {[%clk 0:02:06]}  g4 {[%clk 0:00:49]} 22. Nxe4 {[%clk 0:01:58]}  fxe4 {[%clk 0:00:49]} 23. Qxg4+ {[%clk 0:01:58]}  Kh8 {[%clk 0:00:49]} 24. Rf1 {[%clk 0:01:58]}  Rg8 {[%clk 0:00:47]} 25. Qh3 {[%clk 0:01:55]}  Rg6 {[%clk 0:00:39]} 26. Nd2 {[%clk 0:01:55]}  Rag8 {[%clk 0:00:28]} 27. Ba1 {[%clk 0:01:47]}  h5 {[%clk 0:00:25]} 28. Ra2 {[%clk 0:01:34]}  h4 {[%clk 0:00:24]} 29. Nxe4 {[%clk 0:01:34]}  dxe4 {[%clk 0:00:18]} 30. Bxc6 {[%clk 0:01:33]}  Bxc6 {[%clk 0:00:16]} 31. d5 {[%clk 0:01:33]}  e5 {[%clk 0:00:08]} 32. dxc6 {[%clk 0:01:33]}  Rh6 {[%clk 0:00:08]} 33. g4 {[%clk 0:01:28]}  Rhg6 {[%clk 0:00:07]} 34. Bc3 {[%clk 0:01:14]}  Rxg4+ {[%clk 0:00:07]} 35. Kh1 {[%clk 0:01:14]}  Qg6 {[%clk 0:00:06]} 36. Raa1 {[%clk 0:01:13]}  Qf5 {[%clk 0:00:06]} 37. f4 {[%clk 0:00:57]}  Rg1+ {[%clk 0:00:06]} 38. Rxg1 {[%clk 0:00:57]}  Qxh3 {[%clk 0:00:06]} 39. Rxg8+ {[%clk 0:00:49]}  Kxg8 {[%clk 0:00:07]} 40. Rg1+ {[%clk 0:00:49]}  Kf7 {[%clk 0:00:07]} 41. fxe5 {[%clk 0:00:49]}  Qf3+ {[%clk 0:00:07]} 42. Rg2 {[%clk 0:00:49]}  h3 {[%clk 0:00:08]} 0-1


[Site "https://www.chess.com"]